[Event "Titled Tuesday Blitz August 24 2021"]
[White "Serikbay, Assel"]
[Black "Maiorov, Nikita"]
[WhiteFideId "13706799"]
[BlackFideId "13501720"]
[WhiteElo "2044"]
[BlackElo "2440"]
[Result "0-1"]
[Round "06"]
[TimeControl "180+1"]
[Date "2021.08.24"]
[WhiteClock "0:00:03"]
[BlackClock "0:01:06"]

1. d4 {[%clk 0:03:00]}  Nf6 {[%clk 0:02:58]} 2. c4 {[%clk 0:02:53]}  e6 {[%clk 0:02:58]} 3. g3 {[%clk 0:02:50]}  d5 {[%clk 0:02:53]} 4. Bg2 {[%clk 0:02:42]}  dxc4 {[%clk 0:02:51]} 5. Nf3 {[%clk 0:02:39]}  Bb4+ {[%clk 0:02:51]} 6. Bd2 {[%clk 0:02:36]}  a5 {[%clk 0:02:49]} 7. O-O {[%clk 0:02:35]}  O-O {[%clk 0:02:48]} 8. Qc2 {[%clk 0:02:31]}  Bxd2 {[%clk 0:02:46]} 9. Nbxd2 {[%clk 0:02:30]}  b5 {[%clk 0:02:45]} 10. a4 {[%clk 0:02:23]}  c6 {[%clk 0:02:45]} 11. Ne5 {[%clk 0:02:21]}  Ra6 {[%clk 0:02:42]} 12. Rfd1 {[%clk 0:02:16]}  Nd5 {[%clk 0:02:40]} 13. e4 {[%clk 0:01:59]}  Nb4 {[%clk 0:02:23]} 14. Qc3 {[%clk 0:01:58]}  Nd7 {[%clk 0:02:22]} 15. Nxd7 {[%clk 0:01:52]}  Bxd7 {[%clk 0:02:21]} 16. b3 {[%clk 0:01:51]}  cxb3 {[%clk 0:02:01]} 17. Nxb3 {[%clk 0:01:47]}  Qe7 {[%clk 0:01:59]} 18. Nc5 {[%clk 0:01:21]}  Ra7 {[%clk 0:01:58]} 19. axb5 {[%clk 0:00:34]}  cxb5 {[%clk 0:01:57]} 20. d5 {[%clk 0:00:25]}  exd5 {[%clk 0:01:52]} 21. exd5 {[%clk 0:00:24]}  Rc8 {[%clk 0:01:36]} 22. d6 {[%clk 0:00:23]}  Qg5 {[%clk 0:01:35]} 23. Rdc1 {[%clk 0:00:10]}  Na6 {[%clk 0:01:32]} 24. Ne4 {[%clk 0:00:07]}  Rxc3 {[%clk 0:01:31]} 25. Nxg5 {[%clk 0:00:07]}  Rxc1+ {[%clk 0:01:27]} 26. Rxc1 {[%clk 0:00:08]}  h6 {[%clk 0:01:26]} 27. Ne4 {[%clk 0:00:06]}  a4 {[%clk 0:01:25]} 28. Nc3 {[%clk 0:00:03]}  a3 {[%clk 0:01:23]} 29. Ra1 {[%clk 0:00:02]}  b4 {[%clk 0:01:22]} 30. Nd5 {[%clk 0:00:03]}  Be6 {[%clk 0:01:18]} 31. Nb6 {[%clk 0:00:02]}  a2 {[%clk 0:01:09]} 32. Na4 {[%clk 0:00:01]}  b3 {[%clk 0:01:08]} 33. Nb2 {[%clk 0:00:02]}  Nb4 {[%clk 0:01:07]} 34. f4 {[%clk 0:00:02]}  Nc2 {[%clk 0:01:06]} 35. Kf2 {[%clk 0:00:03]} 0-1


[Site "https://www.chess.com"]

[Event "Titled Tuesday Blitz August 24 2021"]
[White "Sevian, Samuel"]
[Black "Jobava, Baadur"]
[WhiteFideId "2040506"]
[BlackFideId "13601520"]
[WhiteElo "2998"]
[BlackElo "2748"]
[Result "0-1"]
[Round "06"]
[TimeControl "180+1"]
[Date "2021.08.24"]
[WhiteClock "0:00:03"]
[BlackClock "0:00:10"]

1. e4 {[%clk 0:03:00]}  c6 {[%clk 0:03:00]} 2. d4 {[%clk 0:03:00]}  d5 {[%clk 0:03:01]} 3. Nc3 {[%clk 0:03:00]}  dxe4 {[%clk 0:03:01]} 4. Nxe4 {[%clk 0:03:01]}  Bf5 {[%clk 0:03:01]} 5. Ng3 {[%clk 0:03:02]}  Bg6 {[%clk 0:03:02]} 6. h4 {[%clk 0:03:02]}  h6 {[%clk 0:03:02]} 7. Nh3 {[%clk 0:03:03]}  e6 {[%clk 0:02:59]} 8. Nf4 {[%clk 0:03:03]}  Bh7 {[%clk 0:02:55]} 9. Bc4 {[%clk 0:03:03]}  Nf6 {[%clk 0:02:45]} 10. O-O {[%clk 0:03:03]}  Bd6 {[%clk 0:02:36]} 11. Re1 {[%clk 0:02:49]}  O-O {[%clk 0:02:26]} 12. c3 {[%clk 0:02:49]}  Re8 {[%clk 0:02:21]} 13. Ngh5 {[%clk 0:02:44]}  Nbd7 {[%clk 0:02:16]} 14. Qf3 {[%clk 0:02:42]}  Nxh5 {[%clk 0:02:13]} 15. Qxh5 {[%clk 0:02:38]}  Nf6 {[%clk 0:02:09]} 16. Qf3 {[%clk 0:02:38]}  Qc7 {[%clk 0:02:04]} 17. g3 {[%clk 0:02:33]}  c5 {[%clk 0:01:53]} 18. Bb3 {[%clk 0:02:29]}  cxd4 {[%clk 0:01:51]} 19. cxd4 {[%clk 0:02:30]}  Bb4 {[%clk 0:01:46]} 20. Re5 {[%clk 0:02:27]}  Rad8 {[%clk 0:01:41]} 21. Be3 {[%clk 0:02:25]}  Bd6 {[%clk 0:01:38]} 22. Rc1 {[%clk 0:02:24]}  Qb8 {[%clk 0:01:30]} 23. Rb5 {[%clk 0:02:03]}  Be4 {[%clk 0:01:29]} 24. Qe2 {[%clk 0:02:03]}  a6 {[%clk 0:01:26]} 25. Ra5 {[%clk 0:01:58]}  Rc8 {[%clk 0:01:20]} 26. Rd1 {[%clk 0:01:56]}  Bc7 {[%clk 0:01:13]} 27. Rc5 {[%clk 0:01:54]}  Bd6 {[%clk 0:01:09]} 28. Rxc8 {[%clk 0:01:50]}  Qxc8 {[%clk 0:01:10]} 29. Bd2 {[%clk 0:01:39]}  Qc6 {[%clk 0:01:02]} 30. Rc1 {[%clk 0:01:39]}  Qd7 {[%clk 0:01:02]} 31. Nh5 {[%clk 0:01:39]}  Nxh5 {[%clk 0:01:00]} 32. Qxe4 {[%clk 0:01:39]}  Nf6 {[%clk 0:01:01]} 33. Qf3 {[%clk 0:01:39]}  Be7 {[%clk 0:00:54]} 34. Be3 {[%clk 0:01:38]}  Rc8 {[%clk 0:00:53]} 35. Re1 {[%clk 0:01:36]}  Bb4 {[%clk 0:00:48]} 36. Rd1 {[%clk 0:01:30]}  Nd5 {[%clk 0:00:48]} 37. Bc1 {[%clk 0:01:31]}  Be7 {[%clk 0:00:40]} 38. Kg2 {[%clk 0:01:29]}  Bf6 {[%clk 0:00:38]} 39. Qe4 {[%clk 0:01:15]}  Qc6 {[%clk 0:00:34]} 40. Kh2 {[%clk 0:01:15]}  Ne7 {[%clk 0:00:32]} 41. Qxc6 {[%clk 0:01:09]}  Rxc6 {[%clk 0:00:33]} 42. Kg2 {[%clk 0:01:08]}  h5 {[%clk 0:00:30]} 43. Kf3 {[%clk 0:01:04]}  g6 {[%clk 0:00:29]} 44. Ke4 {[%clk 0:01:00]}  Kg7 {[%clk 0:00:29]} 45. Bf4 {[%clk 0:00:57]}  Rb6 {[%clk 0:00:27]} 46. Rc1 {[%clk 0:00:49]}  Nf5 {[%clk 0:00:24]} 47. Be3 {[%clk 0:00:46]}  Rb4 {[%clk 0:00:23]} 48. Rd1 {[%clk 0:00:42]}  a5 {[%clk 0:00:22]} 49. Rd2 {[%clk 0:00:41]}  a4 {[%clk 0:00:21]} 50. Bd1 {[%clk 0:00:42]}  Nd6+ {[%clk 0:00:20]} 51. Kd3 {[%clk 0:00:35]}  b5 {[%clk 0:00:16]} 52. a3 {[%clk 0:00:30]}  Rc4 {[%clk 0:00:16]} 53. Rc2 {[%clk 0:00:30]}  e5 {[%clk 0:00:12]} 54. dxe5 {[%clk 0:00:20]}  Bxe5 {[%clk 0:00:13]} 55. Bc1 {[%clk 0:00:19]}  Rd4+ {[%clk 0:00:13]} 56. Ke2 {[%clk 0:00:20]}  Nc4 {[%clk 0:00:13]} 57. Ke1 {[%clk 0:00:17]}  Re4+ {[%clk 0:00:13]} 58. Be2 {[%clk 0:00:17]}  Bf6 {[%clk 0:00:12]} 59. Kf1 {[%clk 0:00:17]}  Rd4 {[%clk 0:00:07]} 60. Bxc4 {[%clk 0:00:16]}  Rxc4 {[%clk 0:00:08]} 61. Rxc4 {[%clk 0:00:17]}  bxc4 {[%clk 0:00:08]} 62. Ke2 {[%clk 0:00:17]}  Bd4 {[%clk 0:00:09]} 63. f3 {[%clk 0:00:15]}  Kf6 {[%clk 0:00:09]} 64. Kd2 {[%clk 0:00:14]}  Ke6 {[%clk 0:00:09]} 65. Kc2 {[%clk 0:00:14]}  Kd5 {[%clk 0:00:09]} 66. Bf4 {[%clk 0:00:14]}  Bf2 {[%clk 0:00:09]} 67. Bb8 {[%clk 0:00:14]}  f5 {[%clk 0:00:08]} 68. Bc7 {[%clk 0:00:14]}  Be1 {[%clk 0:00:06]} 69. Kd1 {[%clk 0:00:14]}  Bf2 {[%clk 0:00:05]} 70. Kc2 {[%clk 0:00:15]}  Bd4 {[%clk 0:00:06]} 71. Bb8 {[%clk 0:00:15]}  Be5 {[%clk 0:00:04]} 72. Bxe5 {[%clk 0:00:14]}  Kxe5 {[%clk 0:00:05]} 73. Kc3 {[%clk 0:00:13]}  f4 {[%clk 0:00:05]} 74. gxf4+ {[%clk 0:00:11]}  Kxf4 {[%clk 0:00:06]} 75. Kxc4 {[%clk 0:00:12]}  g5 {[%clk 0:00:07]} 76. hxg5 {[%clk 0:00:12]}  Kxg5 {[%clk 0:00:08]} 77. Kd3 {[%clk 0:00:11]}  h4 {[%clk 0:00:06]} 78. Ke3 {[%clk 0:00:11]}  h3 {[%clk 0:00:07]} 79. Kf2 {[%clk 0:00:09]}  Kf4 {[%clk 0:00:07]} 80. Kg1 {[%clk 0:00:09]}  Kxf3 {[%clk 0:00:07]} 81. Kh2 {[%clk 0:00:10]}  Kg4 {[%clk 0:00:07]} 82. Kh1 {[%clk 0:00:10]}  Kg3 {[%clk 0:00:08]} 83. Kg1 {[%clk 0:00:10]}  h2+ {[%clk 0:00:08]} 84. Kh1 {[%clk 0:00:11]}  Kh3 {[%clk 0:00:09]} 85. b3 {[%clk 0:00:03]}  axb3 {[%clk 0:00:10]} 0-1


[Site "https://www.chess.com"]

[Event "Titled Tuesday Blitz August 24 2021"]
[White "Shimanov, Aleksandr"]
[Black "Shimelkov, Vasiliy"]
[WhiteFideId "4198603"]
[BlackFideId "13701630"]
[WhiteElo "2596"]
[BlackElo "2073"]
[Result "1-0"]
[Round "06"]
[TimeControl "180+1"]
[Date "2021.08.24"]
[WhiteClock "0:00:44"]
[BlackClock "0:00:06"]

1. b3 {[%clk 0:03:00]}  d5 {[%clk 0:02:59]} 2. Bb2 {[%clk 0:03:00]}  e6 {[%clk 0:02:59]} 3. Nf3 {[%clk 0:03:00]}  Nf6 {[%clk 0:02:59]} 4. e3 {[%clk 0:02:59]}  c5 {[%clk 0:02:59]} 5. c4 {[%clk 0:02:53]}  Be7 {[%clk 0:02:56]} 6. g4 {[%clk 0:02:51]}  O-O {[%clk 0:02:46]} 7. g5 {[%clk 0:02:51]}  Ne4 {[%clk 0:02:44]} 8. h4 {[%clk 0:02:51]}  f6 {[%clk 0:02:25]} 9. d3 {[%clk 0:02:50]}  Nd6 {[%clk 0:02:23]} 10. Rg1 {[%clk 0:02:49]}  f5 {[%clk 0:02:06]} 11. Nc3 {[%clk 0:02:47]}  f4 {[%clk 0:02:00]} 12. cxd5 {[%clk 0:02:29]}  fxe3 {[%clk 0:01:59]} 13. fxe3 {[%clk 0:02:27]}  Nf5 {[%clk 0:01:57]} 14. e4 {[%clk 0:02:24]}  Ne3 {[%clk 0:01:54]} 15. Qe2 {[%clk 0:02:24]}  Nxf1 {[%clk 0:01:50]} 16. Rxf1 {[%clk 0:02:23]}  exd5 {[%clk 0:01:36]} 17. Nxd5 {[%clk 0:02:22]}  Bh3 {[%clk 0:01:32]} 18. Rf2 {[%clk 0:02:17]}  Nc6 {[%clk 0:01:31]} 19. O-O-O {[%clk 0:02:16]}  Bg4 {[%clk 0:01:23]} 20. Rg1 {[%clk 0:02:15]}  Nd4 {[%clk 0:01:15]} 21. Bxd4 {[%clk 0:02:14]}  Bxf3 {[%clk 0:01:16]} 22. Rxf3 {[%clk 0:02:13]}  cxd4 {[%clk 0:01:15]} 23. Rgf1 {[%clk 0:02:12]}  Rc8+ {[%clk 0:01:08]} 24. Kb1 {[%clk 0:02:12]}  Rxf3 {[%clk 0:01:06]} 25. Qxf3 {[%clk 0:02:11]}  Ba3 {[%clk 0:01:03]} 26. Qf7+ {[%clk 0:02:02]}  Kh8 {[%clk 0:01:03]} 27. g6 {[%clk 0:01:41]}  Qxh4 {[%clk 0:00:46]} 28. Qe6 {[%clk 0:01:36]}  Rd8 {[%clk 0:00:27]} 29. Qf5 {[%clk 0:01:10]}  Qg3 {[%clk 0:00:22]} 30. Qf3 {[%clk 0:01:09]}  Qxg6 {[%clk 0:00:21]} 31. Qf2 {[%clk 0:01:08]}  h6 {[%clk 0:00:20]} 32. Qxd4 {[%clk 0:01:07]}  Qg2 {[%clk 0:00:17]} 33. Qf2 {[%clk 0:01:06]}  Qh3 {[%clk 0:00:16]} 34. Qf3 {[%clk 0:01:06]}  Qh2 {[%clk 0:00:16]} 35. Qf2 {[%clk 0:01:06]}  Qh3 {[%clk 0:00:16]} 36. Qe2 {[%clk 0:01:07]}  Rc8 {[%clk 0:00:14]} 37. Nf4 {[%clk 0:01:07]}  Qd7 {[%clk 0:00:14]} 38. Ng6+ {[%clk 0:00:59]}  Kh7 {[%clk 0:00:13]} 39. Ne5 {[%clk 0:00:59]}  Qd4 {[%clk 0:00:11]} 40. Nc4 {[%clk 0:01:00]}  Be7 {[%clk 0:00:08]} 41. e5 {[%clk 0:00:53]}  b5 {[%clk 0:00:08]} 42. Nd2 {[%clk 0:00:49]}  Qc3 {[%clk 0:00:08]} 43. Ne4 {[%clk 0:00:47]}  Qxe5 {[%clk 0:00:08]} 44. Nf6+ {[%clk 0:00:47]}  Qxf6 {[%clk 0:00:08]} 45. Rxf6 {[%clk 0:00:46]}  Bxf6 {[%clk 0:00:09]} 46. d4 {[%clk 0:00:46]}  Kh8 {[%clk 0:00:08]} 47. d5 {[%clk 0:00:45]}  h5 {[%clk 0:00:06]} 48. Qxh5+ {[%clk 0:00:45]}  Kg8 {[%clk 0:00:06]} 49. Qe2 {[%clk 0:00:44]}  Rd8 {[%clk 0:00:06]} 50. Qxb5 {[%clk 0:00:44]}  a6 {[%clk 0:00:06]} 51. Qxa6 {[%clk 0:00:44]}  Kh7 {[%clk 0:00:06]} 52. Qd3+ {[%clk 0:00:44]} 1-0


[Site "https://www.chess.com"]

[Event "Titled Tuesday Blitz August 24 2021"]
[White "Stoyanov, Tsvetan"]
[Black "Pakleza, Zbigniew"]
[WhiteFideId "2917173"]
[BlackFideId "1119290"]
[WhiteElo "2191"]
[BlackElo "2526"]
[Result "1-0"]
[Round "06"]
[TimeControl "180+1"]
[Date "2021.08.24"]
[WhiteClock "0:01:39"]
[BlackClock "0:00:20"]

1. e4 {[%clk 0:03:00]}  d6 {[%clk 0:02:59]} 2. d4 {[%clk 0:03:00]}  Nf6 {[%clk 0:03:00]} 3. Nc3 {[%clk 0:03:01]}  c6 {[%clk 0:03:00]} 4. a4 {[%clk 0:02:56]}  Nbd7 {[%clk 0:03:00]} 5. Nf3 {[%clk 0:02:56]}  e5 {[%clk 0:03:01]} 6. Bc4 {[%clk 0:02:56]}  Be7 {[%clk 0:03:00]} 7. O-O {[%clk 0:02:56]}  O-O {[%clk 0:03:01]} 8. Re1 {[%clk 0:02:56]}  a5 {[%clk 0:02:55]} 9. h3 {[%clk 0:02:52]}  Qc7 {[%clk 0:02:54]} 10. Be3 {[%clk 0:02:49]}  Nb6 {[%clk 0:02:38]} 11. Bb3 {[%clk 0:02:44]}  exd4 {[%clk 0:02:36]} 12. Nxd4 {[%clk 0:02:43]}  Re8 {[%clk 0:02:25]} 13. f4 {[%clk 0:02:26]}  Bf8 {[%clk 0:02:15]} 14. Qf3 {[%clk 0:02:26]}  Nfd7 {[%clk 0:02:04]} 15. Bxf7+ {[%clk 0:01:52]}  Kxf7 {[%clk 0:02:01]} 16. Qh5+ {[%clk 0:01:52]}  g6 {[%clk 0:01:10]} 17. Qxh7+ {[%clk 0:01:52]}  Bg7 {[%clk 0:01:11]} 18. f5 {[%clk 0:01:50]}  Nf6 {[%clk 0:00:32]} 19. fxg6+ {[%clk 0:01:43]}  Kf8 {[%clk 0:00:25]} 20. Rf1 {[%clk 0:01:43]}  Nd7 {[%clk 0:00:20]} 21. Bh6 {[%clk 0:01:39]} 1-0


[Site "https://www.chess.com"]

[Event "Titled Tuesday Blitz August 24 2021"]
[White "Svane, Rasmus"]
[Black "Wieczorek, Oskar"]
[WhiteFideId "4657101"]
[BlackFideId "1133950"]
[WhiteElo "2669"]
[BlackElo "2258"]
[Result "1-0"]
[Round "06"]
[TimeControl "180+1"]
[Date "2021.08.24"]
[WhiteClock "0:02:02"]
[BlackClock "0:00:26"]

1. Nf3 {[%clk 0:03:00]}  Nf6 {[%clk 0:02:59]} 2. g3 {[%clk 0:03:01]}  b6 {[%clk 0:02:59]} 3. Bg2 {[%clk 0:03:01]}  Bb7 {[%clk 0:03:00]} 4. O-O {[%clk 0:03:02]}  g6 {[%clk 0:03:00]} 5. d4 {[%clk 0:03:01]}  Bg7 {[%clk 0:03:00]} 6. c4 {[%clk 0:03:02]}  O-O {[%clk 0:03:00]} 7. Re1 {[%clk 0:03:02]}  e6 {[%clk 0:02:59]} 8. Bf4 {[%clk 0:03:02]}  Na6 {[%clk 0:02:58]} 9. Qc2 {[%clk 0:03:00]}  c5 {[%clk 0:02:49]} 10. dxc5 {[%clk 0:02:54]}  Nxc5 {[%clk 0:02:46]} 11. Nc3 {[%clk 0:02:53]}  d5 {[%clk 0:02:39]} 12. Rad1 {[%clk 0:02:53]}  Qe7 {[%clk 0:02:36]} 13. Be5 {[%clk 0:02:51]}  Rfd8 {[%clk 0:02:28]} 14. Bxf6 {[%clk 0:02:43]}  Bxf6 {[%clk 0:02:25]} 15. cxd5 {[%clk 0:02:44]}  exd5 {[%clk 0:02:25]} 16. Nd4 {[%clk 0:02:45]}  Rac8 {[%clk 0:02:21]} 17. e3 {[%clk 0:02:43]}  Ne4 {[%clk 0:02:14]} 18. Qb3 {[%clk 0:02:24]}  Nxc3 {[%clk 0:02:01]} 19. bxc3 {[%clk 0:02:24]}  Qc5 {[%clk 0:02:01]} 20. Rc1 {[%clk 0:02:24]}  Ba6 {[%clk 0:02:01]} 21. Qa4 {[%clk 0:02:14]}  Qc4 {[%clk 0:01:54]} 22. Qa3 {[%clk 0:02:09]}  Bb7 {[%clk 0:00:30]} 23. Qxa7 {[%clk 0:02:08]}  Rc7 {[%clk 0:00:26]} 24. Qxb6 {[%clk 0:02:02]} 1-0


[Site "https://www.chess.com"]

[Event "Titled Tuesday Blitz August 24 2021"]
[White "Tologon tegin, Semetei"]
[Black "Castellanos Rodriguez, Renier"]
[WhiteFideId "13800574"]
[BlackFideId "3404650"]
[WhiteElo "2224"]
[BlackElo "2612"]
[Result "0-1"]
[Round "06"]
[TimeControl "180+1"]
[Date "2021.08.24"]
[WhiteClock "0:00:01"]
[BlackClock "0:00:32"]

1. e4 {[%clk 0:03:00]}  c5 {[%clk 0:02:59]} 2. Nc3 {[%clk 0:03:00]}  e6 {[%clk 0:02:58]} 3. Bc4 {[%clk 0:02:59]}  Nc6 {[%clk 0:02:55]} 4. Nf3 {[%clk 0:02:59]}  a6 {[%clk 0:02:55]} 5. a4 {[%clk 0:02:54]}  Nf6 {[%clk 0:02:51]} 6. d4 {[%clk 0:02:35]}  cxd4 {[%clk 0:02:49]} 7. Nxd4 {[%clk 0:02:35]}  Qc7 {[%clk 0:02:49]} 8. O-O {[%clk 0:02:19]}  Bb4 {[%clk 0:02:36]} 9. Bb3 {[%clk 0:02:11]}  O-O {[%clk 0:02:32]} 10. Re1 {[%clk 0:01:49]}  Nxd4 {[%clk 0:02:13]} 11. Qxd4 {[%clk 0:01:47]}  Bc5 {[%clk 0:02:14]} 12. Qd1 {[%clk 0:01:43]}  d6 {[%clk 0:02:09]} 13. Bg5 {[%clk 0:01:42]}  Nd7 {[%clk 0:02:05]} 14. Qf3 {[%clk 0:01:32]}  Ne5 {[%clk 0:02:02]} 15. Qg3 {[%clk 0:01:32]}  Bd7 {[%clk 0:01:56]} 16. Kh1 {[%clk 0:01:25]}  Kh8 {[%clk 0:01:43]} 17. f4 {[%clk 0:01:18]}  Nc6 {[%clk 0:01:35]} 18. f5 {[%clk 0:00:56]}  Bd4 {[%clk 0:01:33]} 19. Qh4 {[%clk 0:00:51]}  f6 {[%clk 0:01:17]} 20. Be3 {[%clk 0:00:47]}  Bxc3 {[%clk 0:01:15]} 21. bxc3 {[%clk 0:00:46]}  exf5 {[%clk 0:01:15]} 22. Bf4 {[%clk 0:00:25]}  Ne5 {[%clk 0:01:13]} 23. Bxe5 {[%clk 0:00:23]}  dxe5 {[%clk 0:01:12]} 24. Rad1 {[%clk 0:00:20]}  Rad8 {[%clk 0:01:06]} 25. Bd5 {[%clk 0:00:11]}  Bxa4 {[%clk 0:01:02]} 26. Rd2 {[%clk 0:00:07]}  Bc6 {[%clk 0:00:58]} 27. c4 {[%clk 0:00:07]}  fxe4 {[%clk 0:00:56]} 28. Qxe4 {[%clk 0:00:05]}  Rd7 {[%clk 0:00:53]} 29. Red1 {[%clk 0:00:05]}  Rfd8 {[%clk 0:00:52]} 30. h3 {[%clk 0:00:05]}  h6 {[%clk 0:00:51]} 31. Qf5 {[%clk 0:00:04]}  Bxd5 {[%clk 0:00:45]} 32. cxd5 {[%clk 0:00:05]}  Rd6 {[%clk 0:00:45]} 33. Qe4 {[%clk 0:00:05]}  b5 {[%clk 0:00:45]} 34. Rc1 {[%clk 0:00:04]}  Qc4 {[%clk 0:00:44]} 35. Qxc4 {[%clk 0:00:03]}  bxc4 {[%clk 0:00:45]} 36. Rcd1 {[%clk 0:00:03]}  a5 {[%clk 0:00:45]} 37. Kg1 {[%clk 0:00:03]}  a4 {[%clk 0:00:45]} 38. Kf2 {[%clk 0:00:04]}  a3 {[%clk 0:00:37]} 39. Ke3 {[%clk 0:00:04]}  a2 {[%clk 0:00:36]} 40. Ke4 {[%clk 0:00:04]}  Ra8 {[%clk 0:00:35]} 41. Ra1 {[%clk 0:00:04]}  c3 {[%clk 0:00:34]} 42. Rdd1 {[%clk 0:00:02]}  Ra4+ {[%clk 0:00:34]} 43. Ke3 {[%clk 0:00:01]}  Kg8 {[%clk 0:00:33]} 44. Rd3 {[%clk 0:00:01]}  Ra3 {[%clk 0:00:32]} 0-1


[Site "https://www.chess.com"]

[Event "Titled Tuesday Blitz August 24 2021"]
[White "Trent, Lawrence"]
[Black "Kobalia, Mikhail"]
[WhiteFideId "408638"]
[BlackFideId "4119150"]
[WhiteElo "2474"]
[BlackElo "2569"]
[Result "1-0"]
[Round "06"]
[TimeControl "180+1"]
[Date "2021.08.24"]
[WhiteClock "0:01:33"]
[BlackClock "0:00:38"]

1. e4 {[%clk 0:03:00]}  c6 {[%clk 0:02:58]} 2. d4 {[%clk 0:02:59]}  d5 {[%clk 0:02:58]} 3. f3 {[%clk 0:03:00]}  e6 {[%clk 0:02:56]} 4. Nc3 {[%clk 0:03:00]}  Bb4 {[%clk 0:02:56]} 5. a3 {[%clk 0:03:00]}  Bxc3+ {[%clk 0:02:50]} 6. bxc3 {[%clk 0:03:01]}  dxe4 {[%clk 0:02:51]} 7. Qe2 {[%clk 0:03:01]}  Qa5 {[%clk 0:02:47]} 8. Bd2 {[%clk 0:02:58]}  c5 {[%clk 0:02:47]} 9. fxe4 {[%clk 0:02:56]}  Nf6 {[%clk 0:02:43]} 10. Nf3 {[%clk 0:02:56]}  b6 {[%clk 0:02:36]} 11. d5 {[%clk 0:02:50]}  Qa4 {[%clk 0:02:31]} 12. c4 {[%clk 0:02:41]}  Ba6 {[%clk 0:02:19]} 13. Qd3 {[%clk 0:02:30]}  O-O {[%clk 0:01:54]} 14. Be2 {[%clk 0:02:30]}  exd5 {[%clk 0:01:50]} 15. exd5 {[%clk 0:02:29]}  Nbd7 {[%clk 0:01:49]} 16. O-O {[%clk 0:02:29]}  Rfe8 {[%clk 0:01:46]} 17. Rae1 {[%clk 0:02:07]}  Ne4 {[%clk 0:01:40]} 18. Ng5 {[%clk 0:01:56]}  Nxg5 {[%clk 0:01:26]} 19. Bxg5 {[%clk 0:01:57]}  Ne5 {[%clk 0:01:25]} 20. Qg3 {[%clk 0:01:53]}  Bxc4 {[%clk 0:01:21]} 21. Bxc4 {[%clk 0:01:40]}  Nxc4 {[%clk 0:01:09]} 22. Bh6 {[%clk 0:01:37]}  g6 {[%clk 0:00:50]} 23. Qc3 {[%clk 0:01:36]}  Ne5 {[%clk 0:00:44]} 24. Rxe5 {[%clk 0:01:36]}  Rxe5 {[%clk 0:00:44]} 25. Qxe5 {[%clk 0:01:36]}  Qd4+ {[%clk 0:00:45]} 26. Qxd4 {[%clk 0:01:35]}  cxd4 {[%clk 0:00:46]} 27. Bg5 {[%clk 0:01:35]}  Rc8 {[%clk 0:00:44]} 28. d6 {[%clk 0:01:36]}  Rc5 {[%clk 0:00:38]} 29. d7 {[%clk 0:01:33]} 1-0


[Site "https://www.chess.com"]

[Event "Titled Tuesday Blitz August 24 2021"]
[White "Tsaruk, Maksim"]
[Black "Yoo, Christopher Woojin"]
[WhiteFideId "13511173"]
[BlackFideId "30909694"]
[WhiteElo "2184"]
[BlackElo "2105"]
[Result "0-1"]
[Round "06"]
[TimeControl "180+1"]
[Date "2021.08.24"]
[WhiteClock "0:00:03"]
[BlackClock "0:00:30"]

1. e4 {[%clk 0:03:00]}  d5 {[%clk 0:02:53]} 2. exd5 {[%clk 0:03:00]}  Qxd5 {[%clk 0:02:54]} 3. Nc3 {[%clk 0:03:01]}  Qd6 {[%clk 0:02:54]} 4. d4 {[%clk 0:03:02]}  Nf6 {[%clk 0:02:54]} 5. Nf3 {[%clk 0:03:01]}  Nc6 {[%clk 0:02:54]} 6. Nb5 {[%clk 0:02:58]}  Qd8 {[%clk 0:02:53]} 7. c4 {[%clk 0:02:59]}  a6 {[%clk 0:02:49]} 8. Nc3 {[%clk 0:02:59]}  Bg4 {[%clk 0:02:49]} 9. d5 {[%clk 0:02:50]}  Ne5 {[%clk 0:02:48]} 10. Be2 {[%clk 0:02:51]}  Bxf3 {[%clk 0:02:47]} 11. Bxf3 {[%clk 0:02:52]}  g6 {[%clk 0:02:28]} 12. O-O {[%clk 0:02:49]}  Bg7 {[%clk 0:02:26]} 13. Bf4 {[%clk 0:02:49]}  Nxf3+ {[%clk 0:02:21]} 14. Qxf3 {[%clk 0:02:50]}  O-O {[%clk 0:02:21]} 15. Rfe1 {[%clk 0:02:49]}  b5 {[%clk 0:02:16]} 16. Qe2 {[%clk 0:02:11]}  bxc4 {[%clk 0:01:51]} 17. Qxc4 {[%clk 0:02:12]}  Ne8 {[%clk 0:01:47]} 18. Qe4 {[%clk 0:01:57]}  Bf6 {[%clk 0:01:44]} 19. Bh6 {[%clk 0:01:52]}  Nd6 {[%clk 0:01:42]} 20. Qf3 {[%clk 0:01:48]}  Re8 {[%clk 0:01:41]} 21. Rac1 {[%clk 0:01:48]}  Rb8 {[%clk 0:01:38]} 22. b3 {[%clk 0:01:49]}  Qd7 {[%clk 0:01:30]} 23. Na4 {[%clk 0:01:48]}  Nf5 {[%clk 0:01:26]} 24. Bf4 {[%clk 0:01:48]}  Nd4 {[%clk 0:01:22]} 25. Qd1 {[%clk 0:01:41]}  Nb5 {[%clk 0:01:19]} 26. Nc5 {[%clk 0:01:40]}  Qf5 {[%clk 0:01:18]} 27. Qf3 {[%clk 0:01:16]}  Ra8 {[%clk 0:00:53]} 28. Qe4 {[%clk 0:01:10]}  Nc3 {[%clk 0:00:44]} 29. Qxf5 {[%clk 0:00:24]}  gxf5 {[%clk 0:00:45]} 30. Nd7 {[%clk 0:00:06]}  Nxd5 {[%clk 0:00:39]} 31. Nxf6+ {[%clk 0:00:03]}  exf6 {[%clk 0:00:39]} 32. Bd2 {[%clk 0:00:02]}  Rxe1+ {[%clk 0:00:35]} 33. Rxe1 {[%clk 0:00:03]}  Kg7 {[%clk 0:00:33]} 34. f3 {[%clk 0:00:04]}  a5 {[%clk 0:00:31]} 35. Kf2 {[%clk 0:00:02]}  Nb4 {[%clk 0:00:30]} 36. a3 {[%clk 0:00:02]}  Nd3+ {[%clk 0:00:30]} 37. Ke2 {[%clk 0:00:03]}  Nxe1 {[%clk 0:00:30]} 0-1


[Site "https://www.chess.com"]